fUSD/lending_fUSD_20250201
["ID","MTS","AMOUNT","RATE_DAILY","PERIOD"]
[351169519,1738389040128,-503.241847,0.00017736,2]
[351169521,1738389040137,-510.60576222,0.00017736,2]
[351169523,1738389040147,-500.0,0.00017736,2]
[351169525,1738389040156,-105.39751236,0.00017736,2]
[351169534,1738389040231,-394.60248764,0.00017736,2]
[351169536,1738389040240,-500.0,0.00017736,2]
[351169538,1738389040249,-500.0,0.00017736,2]
[351169539,1738389040258,-566.9,0.00017736,2]
[351169542,1738389040267,-500.0,0.00017736,2]
[351169544,1738389040277,-500.0,0.00017736,2]
[351169546,1738389040286,-500.0,0.00017736,2]
[351169548,1738389040296,-598.97,0.00017736,2]
[351169549,1738389040305,-500.0,0.00017736,2]
[351169551,1738389040315,-205.23588248,0.00017736,2]
[351169553,1738389040324,-500.0,0.00017736,2]
[351169555,1738389040332,-500.0,0.00017736,2]
[351169557,1738389040342,-588.37175907,0.00017736,2]
[351169559,1738389040351,-500.0,0.00017736,2]
[351169561,1738389040361,-500.0,0.00017736,2]
[351169563,1738389040370,-500.0,0.00017736,2]
[351169565,1738389040379,-500.0,0.00017736,2]
[351169567,1738389040388,-500.0,0.00017736,2]
[351169569,1738389040398,-500.0,0.00017736,2]
[351169571,1738389040407,-511.2823903,0.00017736,2]
[351169573,1738389040416,-512.66070529,0.00017736,2]
[351169575,1738389040425,-500.0,0.00017736,2]
[351169577,1738389040434,-500.0,0.00017736,2]
[351169579,1738389040443,-500.0,0.00017736,2]
[351169581,1738389040451,-500.0,0.00017736,2]
[351169583,1738389040461,-500.0,0.00017736,2]
[351169585,1738389040470,-500.0,0.00017736,2]
[351169587,1738389040480,-500.0,0.00017736,2]
[351169589,1738389040489,-500.0,0.00017736,2]
[351169591,1738389040498,-500.0,0.00017736,2]
[351169593,1738389040507,-500.0,0.00017736,2]
[351169595,1738389040516,-415.88363233,0.00017736,2]
[351169597,1738389040526,-500.0,0.00017736,2]
[351169599,1738389040535,-500.0,0.00017736,2]
[351169601,1738389040544,-500.0,0.00017736,2]
[351169603,1738389040554,-500.0,0.00017736,2]
[351169604,1738389040563,-500.0,0.00017736,2]
[351169607,1738389040573,-500.0,0.00017736,2]
[351169608,1738389040583,-500.0,0.00017736,2]
[351169610,1738389040592,-500.0,0.00017736,2]
[351169612,1738389040601,-500.0,0.00017736,2]
[351169614,1738389040611,-469.73120166,0.00017736,2]
[351169617,1738389040621,-500.0,0.00017736,2]
[351169619,1738389040630,-500.0,0.00017736,2]
[351169621,1738389040639,-500.0,0.00017736,2]
[351169623,1738389040648,-500.0,0.00017736,2]
[351169624,1738389040657,-500.0,0.00017736,2]
[351169626,1738389040667,-500.0,0.00017736,2]
[351169628,1738389040676,-557.33428199,0.00017736,2]
[351169630,1738389040686,-518.67653088,0.00017736,2]
[351169632,1738389040695,-500.0,0.00017736,2]
[351169634,1738389040704,-1464.95,0.00017736,2]
[351169636,1738389040714,-529.94958196,0.00017736,2]
[351169637,1738389040723,-444.24671827,0.00017736,2]
[351169638,1738389040732,-240.41888693,0.00017736,2]
[351169639,1738389040746,-259.58111307,0.00017736,2]
[351169640,1738389040755,-236.88948358,0.00017736,2]
[351169641,1738389040774,-263.11051642,0.00017736,2]
[351169642,1738389040786,-67.95948358,0.00017736,2]
[351169651,1738389040879,-432.04051642,0.00017736,2]
[351169653,1738389040889,-305.18784969,0.00017736,2]
[351169655,1738389040901,-99.73460532,0.00017736,2]
[351169657,1738389040910,-592.31608757,0.00017736,2]
[351169659,1738389040919,-500.0,0.00017736,2]
[351169661,1738389040930,-500.0,0.00017736,2]
[351169663,1738389040940,-500.0,0.00017736,2]
[351169665,1738389040950,-1682.29,0.00017736,2]
[351169667,1738389040959,-500.0,0.00017736,2]
[351169669,1738389040969,-500.0,0.00017736,2]
[351169671,1738389040979,-500.0,0.00017736,2]
[351169673,1738389040989,-561.91399773,0.00017736,2]
[351169675,1738389040998,-601.5,0.00017736,2]
[351169677,1738389041007,-507.29718955,0.00017736,2]
[351169679,1738389041017,-500.0,0.00017736,2]
[351169681,1738389041026,-500.0,0.00017736,2]
[351169683,1738389041036,-500.0,0.00017736,2]
[351169685,1738389041045,-500.0,0.00017736,2]
[351169687,1738389041054,-500.0,0.00017736,2]
[351169689,1738389041063,-500.0,0.00017736,2]
[351169691,1738389041073,-500.0,0.00017736,2]
[351169693,1738389041082,-500.0,0.00017736,2]
[351169695,1738389041091,-500.0,0.00017736,2]
[351169697,1738389041100,-500.0,0.00017736,2]
[351169699,1738389041109,-500.0,0.00017736,2]
[351169701,1738389041118,-408.48136347,0.00017736,2]
[351169703,1738389041127,-500.0,0.00017736,2]
[351169705,1738389041137,-1278.63,0.00017736,2]
[351169707,1738389041146,-524.81825222,0.00017736,2]
[351169709,1738389041155,-500.0,0.00017736,2]
[351169711,1738389041164,-500.0,0.00017736,2]
[351169713,1738389041173,-500.0,0.00017736,2]
[351169715,1738389041183,-500.0,0.00017736,2]
[351169717,1738389041192,-500.0,0.00017736,2]
[351169718,1738389041201,-500.0,0.00017736,2]
[351169720,1738389041210,-500.0,0.00017736,2]
[351169722,1738389041219,-500.0,0.00017736,2]
[351169724,1738389041228,-190.40097085,0.00017736,2]
[351169726,1738389041237,-500.0,0.00017736,2]
[351169728,1738389041246,-500.0,0.00017736,2]
[351169730,1738389041255,-500.0,0.00017736,2]
[351169732,1738389041265,-500.0,0.00017736,2]
[351169734,1738389041275,-500.0,0.00017736,2]
[351169736,1738389041284,-507.11803057,0.00017736,2]
[351169738,1738389041293,-500.0,0.00017736,2]
[351169740,1738389041302,-500.0,0.00017736,2]
[351169742,1738389041311,-1129.36,0.00017736,2]
[351169744,1738389041321,-500.0,0.00017736,2]
[351169746,1738389041330,-663.66,0.00017736,2]
[351169748,1738389041339,-512.57,0.00017736,2]
[351169750,1738389041349,-500.0,0.00017736,2]
[351169752,1738389041358,-500.0,0.00017736,2]
[351169754,1738389041367,-272.54677773,0.00017736,2]
[351169756,1738389041376,-500.0,0.00017736,2]
[351169758,1738389041385,-500.0,0.00017736,2]
[351169760,1738389041394,-500.0,0.00017736,2]
[351169762,1738389041403,-500.0,0.00017736,2]
[351169764,1738389041413,-500.0,0.00017736,2]
[351169766,1738389041421,-538.58152603,0.00017736,2]
[351169768,1738389041430,-500.0,0.00017736,2]
[351169770,1738389041439,-500.0,0.00017736,2]
[351169772,1738389041448,-500.0,0.00017736,2]
[351169774,1738389041457,-649.34,0.00017736,2]
[351169776,1738389041466,-500.0,0.00017736,2]
[351169778,1738389041475,-500.0,0.00017736,2]
[351169780,1738389041484,-436.31545213,0.00017736,2]
[351169782,1738389041493,-500.0,0.00017736,2]
[351169784,1738389041503,-500.0,0.00017736,2]
[351169786,1738389041512,-500.0,0.00017736,2]
[351169788,1738389041521,-500.0,0.00017736,2]
[351169790,1738389041531,-500.0,0.00017736,2]
[351169792,1738389041540,-500.0,0.00017736,2]
[351169794,1738389041548,-500.0,0.00017736,2]
[351169796,1738389041557,-500.0,0.00017736,2]
[351169798,1738389041567,-500.0,0.00017736,2]
[351169800,1738389041577,-500.0,0.00017736,2]
[351169802,1738389041586,-500.0,0.00017736,2]
[351169804,1738389041595,-500.0,0.00017736,2]
[351169806,1738389041604,-509.07259098,0.00017736,2]
[351169808,1738389041613,-500.0,0.00017736,2]
[351169810,1738389041622,-500.0,0.00017736,2]
[351169812,1738389041631,-516.53555761,0.00017736,2]
[351169814,1738389041640,-500.0,0.00017736,2]
[351169816,1738389041650,-500.0,0.00017736,2]
[351169818,1738389041660,-500.0,0.00017736,2]
[351169820,1738389041680,-500.0,0.00017736,2]
[351169822,1738389041689,-571.23837174,0.00017736,2]
[351169824,1738389041699,-500.0,0.00017736,2]
[351169826,1738389041709,-500.0,0.00017736,2]
[351169828,1738389041718,-500.0,0.00017736,2]
[351169830,1738389041727,-500.0,0.00017736,2]
[351169832,1738389041737,-500.0,0.00017736,2]
[351169834,1738389041746,-715.55,0.00017736,2]
[351169836,1738389041755,-500.0,0.00017736,2]
[351169838,1738389041764,-500.0,0.00017736,2]
[351169840,1738389041774,-500.0,0.00017736,2]
[351169842,1738389041786,-500.0,0.00017736,2]
[351169844,1738389041795,-500.0,0.00017736,2]
[351169846,1738389041804,-500.0,0.00017736,2]
[351169848,1738389041814,-500.0,0.00017736,2]
[351169850,1738389041823,-500.0,0.00017736,2]
[351169852,1738389041832,-500.0,0.00017736,2]
[351169854,1738389041843,-500.0,0.00017736,2]
[351169856,1738389041852,-500.0,0.00017736,7]
[351169858,1738389041865,-511.39000878,0.00017736,2]
[351169860,1738389041876,-240.72815698,0.00017736,2]
[351169862,1738389041886,-500.0,0.00017736,2]
[351169864,1738389041895,-516.16687128,0.00017736,2]
[351169866,1738389041904,-525.63771136,0.00017736,2]
[351169868,1738389041913,-170.00968047,0.00017736,2]
[351169870,1738389041922,-500.0,0.00017736,2]
[351169872,1738389041931,-500.0,0.00017736,2]
[351169874,1738389041940,-500.0,0.00017736,2]
[351169876,1738389041950,-520.60212028,0.00017736,2]
[351169878,1738389041959,-500.0,0.00017736,2]
[351169880,1738389041968,-500.0,0.00017736,2]
[351169882,1738389041977,-508.42776441,0.00017736,2]
[351169884,1738389041987,-500.0,0.00017736,2]
[351169886,1738389041996,-500.0,0.00017736,2]
[351169888,1738389042006,-500.0,0.00017736,2]
[351169890,1738389042015,-500.0,0.00017736,2]
[351169892,1738389042025,-500.0,0.00017736,2]
[351169894,1738389042035,-469.76,0.00017736,2]
[351169896,1738389042044,-535.57040582,0.00017736,2]
[351169898,1738389042054,-515.03672703,0.00017736,2]
[351169900,1738389042063,-500.0,0.00017736,2]
[351169902,1738389042072,-525.0098109,0.00017736,2]
[351169904,1738389042082,-500.0,0.00017736,2]
[351169906,1738389042092,-592.62316426,0.00017736,2]
[351169908,1738389042101,-500.0,0.00017736,2]
[351169910,1738389042111,-354.5985729,0.00017736,2]
[351169912,1738389042121,-500.0,0.00017736,2]
[351169914,1738389042130,-500.0,0.00017736,2]
[351169916,1738389042140,-526.47748508,0.00017736,2]
[351169918,1738389042149,-500.0,0.00017736,2]
[351169920,1738389042158,-500.0,0.00017736,2]
[351169922,1738389042168,-500.0,0.00017736,2]
[351169924,1738389042178,-500.0,0.00017736,2]
[351169926,1738389042187,-500.0,0.00017736,2]
[351169928,1738389042196,-500.0,0.00017736,2]
[351169930,1738389042206,-962.39,0.00017736,2]
[351169932,1738389042215,-595.49739016,0.00017736,2]
[351169934,1738389042224,-500.0,0.00017736,2]
[351169936,1738389042233,-506.18727414,0.00017736,2]
[351169938,1738389042243,-500.0,0.00017736,2]
[351169940,1738389042251,-509.92268288,0.00017736,2]
[351169942,1738389042260,-772.43,0.00017736,2]
[351169944,1738389042269,-500.0,0.00017736,2]
[351169946,1738389042279,-500.0,0.00017736,2]
[351169948,1738389042289,-500.0,0.00017736,2]
[351169950,1738389042298,-500.0,0.00017736,2]
[351169952,1738389042308,-534.57890225,0.00017736,2]
[351169954,1738389042317,-380.90720343,0.00017736,2]
[351169956,1738389042326,-500.0,0.00017736,2]
[351169958,1738389042336,-500.0,0.00017736,2]
[351169960,1738389042345,-500.0,0.00017736,2]
[351169962,1738389042355,-500.0,0.00017736,2]
[351169964,1738389042365,-500.0,0.00017736,2]
[351169966,1738389042374,-158.8803057,0.00017736,2]
[351169968,1738389042384,-972.81,0.00017736,2]
[351169970,1738389042394,-500.0,0.00017736,2]
[351169972,1738389042403,-500.0,0.00017736,2]
[351169974,1738389042413,-500.0,0.00017736,2]
[351169976,1738389042422,-500.0,0.00017736,2]
[351169978,1738389042431,-500.0,0.00017736,2]
[351169980,1738389042441,-500.0,0.00017736,2]
[351169982,1738389042450,-500.0,0.00017736,2]
[351170007,1738389042594,-206.61944606,0.00017736,2]
[351170012,1738389042613,-501.43257749,0.00017736,2]
[351170015,1738389042622,-500.0,0.00017736,2]
[351170017,1738389042632,-500.0,0.00017736,2]
[351170020,1738389042642,-460.00496126,0.00017736,2]
[351170022,1738389042652,-500.0,0.00017736,2]
[351170025,1738389042662,-500.0,0.00017736,2]
[351170028,1738389042672,-649.64,0.00017736,2]
[351170030,1738389042682,-500.0,0.00017736,2]
[351170033,1738389042690,-500.0,0.00017736,2]
[351170035,1738389042700,-545.10416502,0.00017736,2]
[351170038,1738389042709,-500.0,0.00017736,2]
[351170040,1738389042719,-500.0,0.00017736,2]
[351170044,1738389042729,-500.0,0.00017736,2]
[351170047,1738389042739,-500.0,0.00017736,2]
[351170050,1738389042748,-500.0,0.00017736,2]
[351170052,1738389042758,-500.0,0.00017736,2]
[351170054,1738389042767,-500.0,0.00017736,2]
[351170056,1738389042777,-613.6107488,0.00017736,2]
[351170058,1738389042795,-500.0,0.00017736,2]
[351170060,1738389042812,-710.51,0.00017736,2]
[351170062,1738389042821,-500.0,0.00017736,2]
[351170064,1738389042831,-430.09162175,0.00017736,2]
[351170066,1738389042840,-500.0,0.00017736,2]
[351170067,1738389042850,-428.75213981,0.00017736,2]
[351170068,1738389042859,-500.0,0.00017736,2]
[351170069,1738389042869,-500.0,0.00017736,2]
[351170070,1738389042878,-500.0,0.00017736,2]
[351170071,1738389042887,-500.0,0.00017736,2]
[351170072,1738389042897,-360.72118354,0.00017736,2]
[351170073,1738389042906,-500.0,0.00017736,2]
[351170074,1738389042915,-500.0,0.00017736,2]
[351170075,1738389042924,-500.0,0.00017736,2]
[351170077,1738389042935,-500.0,0.00017736,2]
[351170079,1738389042944,-500.0,0.00017736,2]
[351170081,1738389042955,-500.0,0.00017736,2]
[351170083,1738389042964,-500.0,0.00017736,2]
[351170085,1738389042974,-500.0,0.00017736,2]
[351170087,1738389042983,-500.0,0.00017736,2]
[351170089,1738389042993,-500.0,0.00017736,2]
[351170091,1738389043002,-500.0,0.00017736,2]
[351170093,1738389043011,-600.15,0.00017736,2]
[351170095,1738389043020,-500.0,0.00017736,2]
[351170097,1738389043029,-500.0,0.00017736,2]
[351170099,1738389043039,-500.0,0.00017736,2]
[351170101,1738389043048,-500.0,0.00017736,2]
[351170103,1738389043059,-388.98398348,0.00017736,2]
[351170105,1738389043068,-500.0,0.00017736,2]
[351170107,1738389043078,-586.74696986,0.00017736,2]
[351170109,1738389043087,-500.72824597,0.00017736,2]
[351170111,1738389043097,-500.0,0.00017736,2]
[351170112,1738389043106,-500.0,0.00017736,2]
[351170114,1738389043116,-500.0,0.00017736,2]
[351170116,1738389043126,-500.0,0.00017736,2]
[351170118,1738389043135,-500.0,0.00017736,2]
[351170120,1738389043144,-500.0,0.00017736,2]
[351170122,1738389043154,-500.0,0.00017736,2]
[351170124,1738389043163,-500.0,0.00017736,2]
[351170127,1738389043173,-908.3,0.00017736,2]
[351170128,1738389043182,-500.0,0.00017736,2]
[351170130,1738389043192,-500.0,0.00017736,2]
[351170133,1738389043201,-500.0,0.00017736,2]
[351170135,1738389043210,-497.66814443,0.00017736,2]
[351170136,1738389043220,-502.29937509,0.00017736,2]
[351170138,1738389043229,-500.0,0.00017736,2]
[351170140,1738389043239,-506.53817868,0.00017736,2]
[351170142,1738389043248,-500.0,0.00017736,2]
[351170144,1738389043258,-501.62750458,0.00017736,2]
[351170146,1738389043267,-500.0,0.00017736,2]
[351170148,1738389043277,-500.0,0.00017736,2]
[351170150,1738389043286,-500.0,0.00017736,2]
[351170152,1738389043295,-504.20277203,0.00017736,2]
[351170154,1738389043303,-500.0,0.00017736,2]
[351170156,1738389043312,-501.3723655,0.00017736,2]
[351170158,1738389043321,-500.0,0.00017736,2]
[351170160,1738389043330,-500.0,0.00017736,2]
[351170162,1738389043339,-617.27165624,0.00017736,2]
[351170164,1738389043348,-500.0,0.00017736,2]
[351170166,1738389043357,-500.0,0.00017736,2]
[351170168,1738389043366,-443.44174261,0.00017736,2]
[351170170,1738389043375,-500.0,0.00017736,2]
[351170172,1738389043384,-500.0,0.00017736,2]
[351170174,1738389043394,-500.0,0.00017736,2]
[351170176,1738389043402,-500.0,0.00017736,2]
[351170178,1738389043412,-500.0,0.00017736,2]
[351170180,1738389043421,-500.0,0.00017736,2]
[351170182,1738389043430,-772.21,0.00017736,2]
[351170184,1738389043439,-500.0,0.00017736,2]
[351170186,1738389043449,-500.0,0.00017736,2]
[351170188,1738389043458,-500.0,0.00017736,2]
[351170190,1738389043468,-949.09,0.00017736,2]
[351170192,1738389043478,-500.0,0.00017736,2]
[351170194,1738389043487,-500.0,0.00017736,2]
[351170196,1738389043496,-204.92625866,0.00017736,2]
[351170198,1738389043505,-500.0,0.00017736,2]
[351170200,1738389043515,-504.47703845,0.00017736,2]
[351170202,1738389043525,-500.0,0.00017736,2]
[351170204,1738389043534,-500.0,0.00017736,2]
[351170206,1738389043542,-835.91,0.00017736,2]
[351170208,1738389043551,-500.0,0.00017736,2]
[351170210,1738389043560,-500.0,0.00017736,2]
[351170211,1738389043569,-500.0,0.00017736,2]
[351170213,1738389043578,-500.0,0.00017736,2]
[351170215,1738389043587,-500.0,0.00017736,2]
[351170217,1738389043596,-500.0,0.00017736,2]
[351170219,1738389043606,-1522.1,0.00017736,2]
[351170221,1738389043615,-500.0,0.00017736,2]
[351170223,1738389043624,-570.85,0.00017736,2]
[351170225,1738389043634,-637.97726019,0.00017736,2]
[351170227,1738389043643,-20045.10908258,0.00017744,2]
[351170229,1738389043652,-500.0,0.00017762,2]
[351170231,1738389043661,-500.0,0.00017762,2]
[351170233,1738389043672,-500.0,0.00017762,2]
[351170235,1738389043681,-500.0,0.00017762,2]
[351170237,1738389043690,-500.0,0.00017762,2]
[351170239,1738389043699,-196.19723753,0.00017762,2]
[351170241,1738389043708,-500.0,0.00017762,2]
[351170243,1738389043717,-406.6541,0.00017772,2]
[351170245,1738389043726,-429.78644604,0.00017782,2]
[351170247,1738389043735,-665.856,0.00017792,2]
[351170249,1738389043744,-371.58,0.000178,2]
[351170251,1738389043754,-380.81,0.000178,2]
[351170253,1738389043765,-376.76,0.000178,2]
[351170255,1738389043773,-378.56,0.000178,2]
[351170257,1738389043783,-3000.0,0.0001782,2]
[351170259,1738389043793,-150.0,0.00017831,2]
[351170261,1738389043802,-20045.10908258,0.00017852,2]
[351170263,1738389043812,-150.0,0.00017857,2]
[351170265,1738389043821,-150.0,0.00017862,2]
[351170267,1738389043830,-500.0,0.00017871,2]
[351170269,1738389043839,-719.76,0.00017871,2]
[351170271,1738389043849,-2336.45,0.00017871,2]
[351170273,1738389043859,-961.21,0.00017871,2]
[351170275,1738389043868,-5665.52,0.00017871,2]
[351170277,1738389043877,-452.904927,0.00017871,2]
[351170279,1738389043886,-2153.0,0.00017871,2]
[351170281,1738389043895,-2349.33,0.00017871,2]
[351170283,1738389043904,-500.0,0.00017871,2]
[351170285,1738389043913,-387.04498,0.00017871,2]
[351170287,1738389043923,-2412.48,0.00017871,2]
[351170289,1738389043932,-855.97,0.00017871,2]
[351170291,1738389043941,-500.0,0.00017871,2]
[351170293,1738389043951,-1393.59,0.00017871,2]
[351170295,1738389043961,-809.88,0.00017871,2]
[351170297,1738389043971,-500.0,0.00017871,2]
[351170299,1738389043980,-1727.06,0.00017871,2]
[351170301,1738389043990,-500.0,0.00017871,2]
[351170303,1738389043999,-1604.57,0.00017871,2]
[351170305,1738389044009,-3017.87,0.00017871,2]
[351170307,1738389044018,-1321.81,0.00017871,2]
[351170309,1738389044027,-2380.73,0.00017871,2]
[351170311,1738389044036,-1070.42,0.00017871,2]
[351170313,1738389044045,-2048.37,0.00017871,2]
[351170315,1738389044055,-2555.69,0.00017871,2]
[351170317,1738389044064,-1402.57,0.00017871,2]
[351170319,1738389044074,-1060.74,0.00017871,2]
[351170321,1738389044083,-3192.4,0.00017871,2]
[351170323,1738389044092,-4015.93,0.00017871,2]
[351170325,1738389044101,-500.0,0.00017871,2]
[351170327,1738389044110,-884.18,0.00017871,2]
[351170329,1738389044120,-1944.96,0.00017871,2]
[351170331,1738389044131,-1172.77,0.00017871,2]
[351170333,1738389044141,-3310.42,0.00017871,2]
[351170335,1738389044151,-394.31798354,0.00017871,2]
[351170341,1738389044200,-401.44214624,0.00017871,2]
[351170343,1738389044212,-335.0299999,0.00017871,2]
[351170345,1738389044224,-52.35987032,0.00017871,2]
[351170347,1738389044233,-281.55513018,0.00017871,2]
[351170350,1738389044245,-218.44486982,0.00017871,2]
[351170352,1738389044255,-295.44613018,0.00017871,2]
[351170395,1738389044653,-500.0,0.00017735,2]
[351170397,1738389044662,-76.6553632,0.00017735,2]
[351170403,1738389044704,-423.3446368,0.00017735,2]
[351170404,1738389044713,-570.00170066,0.00017735,2]
[351170407,1738389044722,-853.64386982,0.00017871,2]
[351170409,1738389044732,-1220.55,0.00017871,2]
[351170411,1738389044741,-523.42765883,0.00017872,2]
[351170412,1738389044750,-500.0,0.00017872,2]
[351170414,1738389044759,-617.27,0.00017872,2]
[351170416,1738389044768,-509.84223354,0.00017872,2]
[351170419,1738389044779,-807.7,0.00017872,2]
[351170420,1738389044792,-500.0,0.00017872,2]
[351170421,1738389044802,-500.0,0.00017872,2]
[351170422,1738389044811,-500.0,0.00017872,2]
[351170423,1738389044820,-500.0,0.00017872,2]
[351170424,1738389044830,-776.52,0.00017872,2]
[351170425,1738389044838,-500.0,0.00017872,2]
[351170426,1738389044847,-500.0,0.00017872,2]
[351170427,1738389044857,-500.0,0.00017872,2]
[351170428,1738389044866,-748.15,0.00017872,2]
[351170430,1738389044877,-500.0,0.00017872,2]
[351170432,1738389044886,-508.94,0.00017872,2]
[351170434,1738389044895,-500.0,0.00017872,2]
[351170435,1738389044904,-500.0,0.00017872,2]
[351170437,1738389044913,-500.0,0.00017872,2]
[351170440,1738389044923,-850.37,0.00017872,2]
[351170441,1738389044932,-500.0,0.00017872,2]
[351170443,1738389044941,-500.0,0.00017872,2]
[351170445,1738389044951,-500.0,0.00017872,2]
[351170447,1738389044960,-500.0,0.00017872,2]
[351170450,1738389044970,-500.0,0.00017872,2]
[351170451,1738389044979,-500.0,0.00017872,2]
[351170453,1738389044989,-773.57,0.00017872,2]
[351170455,1738389044998,-500.0,0.00017872,2]
[351170457,1738389045007,-500.0,0.00017872,2]
[351170459,1738389045018,-500.0,0.00017872,2]
[351170461,1738389045028,-500.0,0.00017872,2]
[351170463,1738389045037,-869.35,0.00017872,2]
[351170465,1738389045046,-500.0,0.00017872,2]
[351170467,1738389045055,-500.0,0.00017872,2]
[351170469,1738389045064,-520.6389916,0.00017872,2]
[351170471,1738389045074,-500.0,0.00017872,2]
[351170473,1738389045083,-500.0,0.00017872,2]
[351170475,1738389045092,-514.24620699,0.00017872,2]
[351170477,1738389045102,-500.0,0.00017872,2]
[351170479,1738389045111,-507.32591611,0.00017872,2]
[351170481,1738389045120,-500.0,0.00017872,2]
[351170483,1738389045130,-503.79987978,0.00017872,2]
[351170485,1738389045139,-500.0,0.00017872,2]
[351170487,1738389045148,-516.61872712,0.00017872,2]
[351170489,1738389045157,-500.0,0.00017872,2]
[351170491,1738389045167,-500.0,0.00017872,2]
[351170493,1738389045176,-417.40863432,0.00017872,2]
[351170495,1738389045186,-572.82,0.00017872,2]
[351170497,1738389045196,-500.0,0.00017872,2]
[351170499,1738389045206,-500.0,0.00017872,2]
[351170501,1738389045215,-500.0,0.00017872,2]
[351170503,1738389045224,-905.79,0.00017872,2]
[351170505,1738389045233,-500.0,0.00017872,2]
[351170507,1738389045242,-613.98,0.00017872,2]
[351170509,1738389045251,-507.82,0.00017872,2]
[351170511,1738389045260,-520.02215914,0.00017872,2]
[351170513,1738389045270,-500.0,0.00017872,2]
[351170515,1738389045280,-625.81,0.00017872,2]
[351170517,1738389045290,-693.6,0.00017872,2]
[351170519,1738389045298,-536.29183256,0.00017872,2]
[351170520,1738389045307,-500.0,0.00017872,2]
[351170522,1738389045317,-414.28569923,0.00017872,2]
[351170524,1738389045326,-500.0,0.00017872,2]
[351170526,1738389045335,-500.0,0.00017872,2]
[351170528,1738389045344,-768.09,0.00017872,2]
[351170530,1738389045354,-500.0,0.00017872,2]
[351170532,1738389045363,-500.0,0.00017872,2]
[351170534,1738389045373,-500.0,0.00017872,2]
[351170536,1738389045382,-500.0,0.00017872,2]
[351170538,1738389045392,-531.96,0.00017872,2]
[351170540,1738389045401,-689.01,0.00017872,2]
[351170542,1738389045410,-500.0,0.00017872,2]
[351170544,1738389045419,-500.0,0.00017872,2]
[351170546,1738389045429,-500.0,0.00017872,2]
[351170548,1738389045439,-500.0,0.00017872,2]
[351170550,1738389045448,-500.0,0.00017872,2]
[351170552,1738389045458,-572.54981137,0.00017872,2]
[351170554,1738389045467,-500.0,0.00017872,2]
[351170556,1738389045476,-500.0,0.00017872,2]
[351170558,1738389045486,-508.82854921,0.00017872,2]
[351170577,1738389045648,-500.0,0.00017872,2]
[351170579,1738389045657,-706.85,0.00017872,2]
[351170581,1738389045667,-500.0,0.00017872,2]
[351170583,1738389045677,-518.5,0.00017872,2]
[351170585,1738389045687,-161.27237011,0.00017872,2]
[351170587,1738389045697,-500.0,0.00017872,2]
[351170589,1738389045707,-564.61,0.00017872,2]
[351170591,1738389045717,-500.0,0.00017872,2]
[351170593,1738389045727,-779.28,0.00017872,2]
[351170595,1738389045737,-511.12578398,0.00017872,2]
[351170597,1738389045746,-1072.37,0.00017872,2]
[351170599,1738389045755,-500.0,0.00017872,2]
[351170601,1738389045765,-815.73,0.00017872,2]
[351170603,1738389045774,-500.0,0.00017872,2]